bitfinex-derivatives/quotes_ETHF0:USTF0_20230105
["timestamp","ask_amount","ask_price","bid_price","bid_amount"]
[1672878826366,3.0073,1256.6,1256.4,2.97899007]
[1672878826683,0.5,1256.5,1256.4,2.97899007]
[1672878827104,0.5,1256.5,1256.4,1.78720998]
[1672878827424,0.5,1256.5,1256.4,1.19203751]
[1672878830251,0.5,1256.5,1256.3,2.97924749]
[1672878830462,3.0073,1256.4,1256.3,2.97924749]
[1672878836134,0.5,1256.5,1256.3,2.97924749]
[1672878836345,3.0073,1256.4,1256.3,2.97924749]
[1672878836556,3.0073,1256.4,1256.3,2.97228939]
[1672878837080,3.0073,1256.4,1256.3,1.18507941]
[1672878837287,3.0073,1256.4,1256.3,2.97228939]
[1672878837924,3.0073,1256.4,1256.3,1.18507941]
[1672878838975,3.0073,1256.4,1256.3,2.97228939]
[1672878840342,3.0073,1256.4,1256.3,1.18507941]
[1672878840970,3.0073,1256.4,1256.3,2.97228939]
[1672878842334,3.0073,1256.4,1256.3,1.0258881]
[1672878842649,3.0073,1256.4,1256.1,1.79120998]
[1672878842862,3.0073,1256.2,1256.1,1.79120998]
[1672878843272,3.0073,1256.2,1256.1,0.004]
[1672878844858,2.0,1256.4,1256.1,0.004]
[1672878845068,3.0073,1256.2,1256.1,0.004]
[1672878856953,2.0,1256.1,1255.8,1.78720998]
[1672878857164,3.0073,1255.9,1255.8,1.78720998]
[1672878858214,3.0073,1255.9,1255.7,4.16599607]
[1672878858424,3.0073,1255.9,1255.8,1.78720998]
[1672878858635,3.0073,1255.9,1255.8,3.78720998]
[1672878858848,3.0073,1255.9,1255.8,1.78720998]
[1672878860319,3.0073,1255.9,1255.7,1.78720998]
[1672878860628,3.0073,1255.9,1255.7,3.78720998]
[1672878861166,3.0073,1255.9,1255.7,1.78720998]
[1672878861895,2.0,1255.8,1255.7,1.78720998]
[1672878863683,2.0,1255.8,1255.6,1.78720998]
[1672878865677,3.0073,1255.9,1255.6,1.78720998]
[1672878865997,0.5,1256.0,1255.7,3.78720998]
[1672878867668,3.5073,1256.0,1255.7,1.78720998]
[1672878868094,3.5073,1256.0,1255.8,2.0]
[1672878868306,0.5,1256.0,1255.8,2.0]
[1672878868516,3.0073,1255.9,1255.7,3.78720998]
[1672878868732,3.0073,1255.9,1255.7,1.78720998]
[1672878868936,2.0,1255.8,1255.7,1.78720998]
[1672878869568,2.0,1255.8,1255.6,6.16599607]
[1672878871464,2.0,1255.8,1255.6,4.16599607]
[1672878871670,2.0,1255.8,1255.6,1.78720998]
[1672878872515,3.0073,1255.7,1255.5,6.16599607]
[1672878872718,3.0073,1255.7,1255.6,1.78720998]
[1672878872931,3.0073,1255.7,1255.6,3.78720998]
[1672878874616,2.0,1255.8,1255.6,3.78720998]
[1672878875452,2.0,1255.8,1255.6,3.78920998]
[1672878875662,2.0,1255.8,1255.6,1.78920998]
[1672878876403,0.002,1255.7,1255.6,1.78920998]
[1672878877249,0.002,1255.7,1255.6,2.38078609]
[1672878877555,0.002,1255.7,1255.6,3.78711112]
[1672878878605,3.0093,1255.7,1255.6,3.78711112]
[1672878878820,3.0093,1255.7,1255.6,1.78711112]
[1672878882604,0.002,1255.7,1255.6,1.78711112]
[1672878891752,0.002,1255.7,1255.6,6.16589721]
[1672878892381,0.002,1255.7,1255.6,6.16895222]
[1672878892701,0.002,1255.7,1255.6,4.38078609]
[1672878893740,0.002,1255.7,1255.6,5.7922961]
[1672878894488,0.002,1255.7,1255.6,8.76416732]
[1672878895327,0.002,1255.7,1255.6,5.7922961]
[1672878896271,0.002,1255.7,1255.6,8.76416732]
[1672878897005,0.002,1255.7,1255.6,5.7922961]
[1672878900265,0.002,1255.7,1255.6,8.76416732]
[1672878900579,0.002,1255.7,1255.6,5.7922961]
[1672878900779,0.002,1255.7,1255.6,8.76416732]
[1672878900995,0.002,1255.7,1255.6,5.7922961]
[1672878906573,0.002,1255.7,1255.6,8.76416732]
[1672878909095,0.002,1255.7,1255.6,6.38538123]
[1672878909511,0.002,1255.7,1255.6,8.77335964]
[1672878909927,0.002,1255.7,1255.6,6.38538123]
[1672878910242,0.002,1255.7,1255.6,8.77340539]
[1672878913087,0.002,1255.7,1255.6,6.77340539]
[1672878913295,0.002,1255.7,1255.6,6.19028312]
[1672878915822,3.0093,1255.7,1255.6,6.19028312]
[1672878916554,3.0093,1255.7,1255.6,9.16215434]
[1672878917385,3.0093,1255.7,1255.6,6.77340539]
[1672878925587,3.0093,1255.7,1255.6,7.75056964]
[1672878925787,3.0093,1255.7,1255.6,9.16207965]
[1672878926002,3.0093,1255.7,1255.6,6.77340539]
[1672878926318,3.0093,1255.7,1255.6,9.16204366]
[1672878926638,3.0093,1255.7,1255.6,6.77340539]
[1672878928640,3.00205894,1255.7,1255.6,6.77340539]
[1672878928839,3.0073,1255.8,1255.6,6.77140539]
[1672878929049,2.0,1255.7,1255.6,5.35989538]
[1672878929369,2.0,1255.7,1255.6,9.16016637]
[1672878929573,2.0,1255.7,1255.6,2.38802416]
[1672878929995,2.0,1255.7,1255.6,4.17974207]
[1672878930419,2.0,1255.7,1255.6,2.38802416]
[1672878931253,2.0,1255.7,1255.6,4.17974207]
[1672878931459,2.0,1255.7,1255.6,2.38802416]
[1672878932216,2.0,1255.7,1255.6,4.17974207]
[1672878932736,2.0,1255.7,1255.6,2.38802416]
[1672878933368,2.0,1255.7,1255.6,4.17974207]
[1672878933578,2.0,1255.7,1255.6,2.38802416]
[1672878933788,2.0,1255.7,1255.6,4.17974207]
[1672878936309,2.0,1255.7,1255.6,2.38802416]
[1672878938721,2.0,1255.7,1255.6,2.38537877]
[1672878941252,5.0073,1255.7,1255.6,2.38537877]
[1672878943875,3.0073,1255.7,1255.6,2.38537877]
[1672878944078,3.0073,1255.7,1255.6,4.38537877]
[1672878944289,3.0073,1255.7,1255.6,2.38537877]
[1672878948079,2.0,1255.9,1255.6,2.38537877]
[1672878948501,3.0073,1255.7,1255.6,2.38537877]
[1672878955015,2.0,1255.9,1255.6,2.38537877]
[1672878955223,3.0073,1255.7,1255.6,2.38537877]
[1672878955855,2.0,1255.9,1255.6,2.38537877]
[1672878956064,3.0073,1255.7,1255.6,2.38537877]
[1672878965191,5.0073,1255.7,1255.6,2.38537877]
[1672878967193,12.9543,1255.7,1255.6,2.38537877]
[1672878973922,2.0,1255.6,1255.3,2.98483147]
[1672878974134,3.0073,1255.4,1255.3,2.98483147]
[1672878974342,3.0073,1255.4,1255.3,1.79171791]
[1672878975920,3.0073,1255.4,1255.3,2.98454592]
[1672878976974,3.0073,1255.4,1255.3,1.79171791]
[1672878978452,3.0073,1255.5,1255.3,1.79171791]
[1672878978662,3.0073,1255.5,1255.4,1.19271771]
[1672878980762,3.0073,1255.5,1255.3,2.98443562]
[1672878980975,3.0073,1255.5,1255.3,1.19271771]
[1672878981179,1.5,1255.4,1255.3,1.19271771]
[1672878982336,1.5,1255.4,1255.3,2.98443562]
[1672878984450,3.0073,1255.5,1255.3,2.98443562]
[1672878984653,3.0073,1255.5,1255.4,1.19271771]
[1672878984863,3.0073,1255.5,1255.4,3.19271771]
[1672878985072,3.0073,1255.5,1255.4,1.19271771]
[1672878990121,3.0073,1255.5,1255.4,2.98443562]
[1672878990334,3.0073,1255.5,1255.4,1.19271771]
[1672878991060,3.0073,1255.5,1255.4,2.98443562]
[1672878993590,3.0073,1255.5,1255.4,1.79171791]
[1672878994843,3.0073,1255.5,1255.4,3.79171791]
[1672878995690,3.0073,1255.5,1255.4,1.79171791]
[1672878996642,2.0,1255.7,1255.4,1.79171791]
[1672878996960,3.0073,1255.6,1255.5,1.19350632]
[1672879001045,3.0073,1255.6,1255.5,2.98522423]
[1672879002413,3.0073,1255.6,1255.5,1.79171791]
[1672879002618,5.0073,1255.8,1255.5,6.18042116]
[1672879002836,5.0073,1255.8,1255.6,3.98554089]
[1672879003158,5.0073,1255.8,1255.6,2.19382298]
[1672879004832,8.36684697,1256.0,1255.7,2.98554089]
[1672879005048,5.0073,1256.0,1255.9,2.0]
[1672879005889,5.0073,1256.0,1255.8,3.19340984]
[1672879006512,2.0,1255.9,1255.7,4.98512775]
[1672879006728,2.0,1255.9,1255.7,3.19340984]
[1672879007051,2.0,1255.9,1255.7,4.98512775]
[1672879007668,2.0,1255.9,1255.7,3.19340984]
[1672879007879,2.0,1255.9,1255.7,4.98512775]
[1672879008300,2.0,1255.9,1255.7,2.98512775]
[1672879008517,2.0,1255.9,1255.7,5.99242775]
[1672879008728,2.0,1255.9,1255.7,4.20070984]
[1672879009360,2.0,1255.9,1255.7,5.99242775]
[1672879009773,2.0,1255.9,1255.7,4.20070984]
[1672879011034,2.0,1255.9,1255.7,1.19340984]
[1672879011254,2.0,1255.9,1255.7,4.20070984]
[1672879013136,2.0,1255.9,1255.7,1.19340984]
[1672879013343,2.0,1255.9,1255.7,4.20070984]
[1672879018712,2.0,1255.9,1255.7,1.19340984]
[1672879019234,2.0,1255.9,1255.7,4.20070984]
[1672879019973,2.0,1255.9,1255.7,1.19340984]
[1672879020287,2.0,1255.9,1255.7,4.20070984]
[1672879021127,2.0,1255.9,1255.7,3.0073]
[1672879021542,2.0,1255.9,1255.7,4.20070984]
[1672879021753,2.0,1255.9,1255.8,2.0]
[1672879022280,2.0,1255.9,1255.7,3.0073]
[1672879022700,2.0,1255.9,1255.7,4.20070984]
[1672879022912,2.0,1255.9,1255.7,3.0073]
[1672879023964,2.0,1255.9,1255.6,11.93212775]
[1672879024175,2.0,1255.9,1255.7,3.0073]
[1672879024383,2.0,1255.9,1255.8,2.0]
[1672879025011,2.0,1255.9,1255.7,3.0073]
[1672879025639,2.0,1255.9,1255.6,11.93212775]
[1672879025854,2.0,1255.9,1255.6,14.93942775]
[1672879027006,2.0,1255.9,1255.6,11.93212775]
[1672879027325,2.0,1255.9,1255.6,14.93942775]
[1672879027532,2.0,1255.9,1255.6,11.93212775]
[1672879027742,2.0,1255.9,1255.6,14.93942775]
[1672879029845,2.0,1255.9,1255.6,11.93212775]
[1672879030161,2.0,1255.9,1255.6,14.93942775]
[1672879031526,2.0,1255.9,1255.6,11.93212775]
[1672879031736,2.0,1255.9,1255.6,14.93942775]
[1672879032161,2.0,1255.9,1255.7,1.19340984]
[1672879032469,2.0,1255.9,1255.6,13.74601791]
[1672879032470,2.0,1255.9,1255.6,14.93942775]
[1672879032893,2.0,1255.9,1255.7,1.19340984]
[1672879033210,2.0,1255.9,1255.6,14.93942775]
[1672879034359,2.0,1255.9,1255.7,1.19340984]
[1672879035207,2.0,1255.9,1255.6,14.93942775]
[1672879035519,2.0,1255.9,1255.7,1.19340984]
[1672879035836,2.0,1255.9,1255.7,2.0]
[1672879036146,2.0,1255.9,1255.7,1.19340984]
[1672879036357,2.0,1255.9,1255.7,2.0]
[1672879036773,2.0,1255.9,1255.6,4.98512775]
[1672879037404,2.0,1255.9,1255.6,2.98512775]
[1672879037827,2.0,1255.9,1255.7,1.19340984]
[1672879038464,2.0,1255.9,1255.6,2.98512775]
[1672879039828,2.0,1255.9,1255.7,1.19340984]
[1672879040040,3.0073,1255.8,1255.6,2.98512775]
[1672879040242,1.5,1255.7,1255.6,2.98512775]
[1672879040557,1.5,1255.7,1255.5,2.98512775]
[1672879041831,1.5,1255.7,1255.6,1.19340984]
[1672879042458,1.5,1255.7,1255.5,2.98512775]
[1672879043091,1.5,1255.7,1255.6,1.19340984]
[1672879043507,1.5,1255.7,1255.5,2.98512775]
[1672879044146,1.5,1255.7,1255.5,1.19340984]
[1672879044871,1.5,1255.7,1255.5,2.98512775]
[1672879045297,1.5,1255.7,1255.5,1.19340984]
[1672879054649,1.5,1255.7,1255.5,2.98512775]
[1672879054969,1.5,1255.7,1255.5,5.99242775]
[1672879056862,1.5,1255.7,1255.5,2.98512775]
[1672879057078,1.5,1255.7,1255.5,5.99242775]
[1672879057594,1.5,1255.7,1255.5,2.98512775]
[1672879058016,1.5,1255.7,1255.5,5.99242775]
[1672879059382,6.1887,1255.9,1255.5,5.99242775]
[1672879059901,5.0073,1255.9,1255.6,4.98512775]
[1672879060116,5.0073,1255.9,1255.7,2.0]
[1672879060326,5.0073,1255.9,1255.7,3.19340984]
[1672879061487,5.0073,1255.9,1255.7,6.20070984]
[1672879062533,3.0073,1255.9,1255.7,6.20070984]
[1672879065055,3.0073,1255.9,1255.7,5.0073]
[1672879065273,3.0073,1255.9,1255.7,6.20070984]
[1672879065592,3.0073,1255.9,1255.7,4.20070984]
[1672879067058,2.0,1256.0,1255.7,1.19340984]
[1672879067270,5.0073,1256.0,1255.7,1.19340984]
[1672879067588,2.0,1256.0,1255.7,1.19340984]
[1672879067903,5.0073,1256.0,1255.7,1.19340984]
[1672879069374,2.0,1256.0,1255.7,1.19340984]
[1672879069691,5.0073,1256.0,1255.7,1.19340984]
[1672879070518,2.0,1256.0,1255.7,1.19340984]
[1672879070846,5.0073,1256.0,1255.7,1.19340984]
[1672879071568,5.0073,1256.0,1255.6,15.93942775]
[1672879071782,5.0073,1256.0,1255.7,1.19340984]
[1672879073780,5.0073,1256.0,1255.6,15.93942775]
[1672879074518,5.0073,1256.0,1255.7,1.19340984]
[1672879074726,5.0073,1256.0,1255.8,2.0]
[1672879075146,0.00720823,1255.8,1255.7,3.19340984]
[1672879079251,0.00720823,1255.8,1255.7,1.19340984]
[1672879080195,0.00720823,1255.8,1255.7,1.19023064]
[1672879080615,2.00720823,1255.8,1255.7,1.19023064]
[1672879081877,0.00720823,1255.8,1255.7,1.19023064]
[1672879091965,0.00720823,1255.8,1255.7,2.98194855]
[1672879094593,0.00720823,1255.8,1255.7,4.98194855]
[1672879094805,0.00720823,1255.8,1255.7,3.79171791]
[1672879096588,0.00720823,1255.8,1255.7,6.18042116]
[1672879097218,0.00720823,1255.8,1255.7,4.38870325]
[1672879099958,0.00720823,1255.8,1255.7,5.80020366]
[1672879100795,0.00720823,1255.8,1255.7,12.33570325]
[1672879101008,0.00720823,1255.8,1255.7,13.74720499]
[1672879102789,0.00720823,1255.8,1255.7,12.33570325]
[1672879104261,0.00720823,1255.8,1255.7,11.73757428]
[1672879107730,0.00720823,1255.8,1255.7,14.12627753]
[1672879108254,0.00720823,1255.8,1255.7,12.33570325]
[1672879108776,0.00720823,1255.8,1255.7,14.12619728]
[1672879111412,0.00720823,1255.8,1255.7,11.73749403]
[1672879111929,0.00720823,1255.8,1255.7,14.12619728]
[1672879112884,0.00720823,1255.8,1255.7,17.13349728]
[1672879113823,0.00720823,1255.8,1255.7,14.74479403]
[1672879116774,0.00720823,1255.8,1255.7,14.12619728]
[1672879116980,0.00720823,1255.8,1255.7,14.74479403]
[1672879117507,0.00720823,1255.8,1255.7,17.13349728]
[1672879118263,0.00720823,1255.8,1255.7,15.34300325]
[1672879120025,0.00720823,1255.8,1255.7,16.75449585]
[1672879120242,0.00720823,1255.8,1255.7,15.34300325]
[1672879120549,0.00720823,1255.8,1255.7,12.33570325]
[1672879120761,0.00720823,1255.8,1255.7,15.34300325]
[1672879121287,0.00720823,1255.8,1255.7,16.754495]
[1672879121505,0.00720823,1255.8,1255.7,15.34300325]
[1672879121708,0.00720823,1255.8,1255.7,16.7544959]
[1672879122133,0.00720823,1255.8,1255.7,15.34300325]
[1672879122445,0.00720823,1255.8,1255.7,16.75449572]
[1672879123602,0.00720823,1255.8,1255.7,16.75451301]
[1672879123804,0.00720823,1255.8,1255.7,15.34300325]
[1672879124010,0.00720823,1255.8,1255.7,16.75449573]
[1672879124332,0.00720823,1255.8,1255.7,13.74719573]
[1672879124545,0.00720823,1255.8,1255.7,16.75449573]
[1672879126437,0.00720823,1255.8,1255.7,13.74719573]
[1672879126648,0.00720823,1255.8,1255.7,16.75449573]
[1672879129485,0.00720823,1255.8,1255.7,13.74719573]
[1672879129692,0.00720823,1255.8,1255.7,16.75449573]
[1672879134110,0.00720823,1255.8,1255.7,13.74719573]
[1672879134320,0.00720823,1255.8,1255.7,16.75449573]
[1672879137690,0.00720823,1255.8,1255.7,13.74719573]
[1672879137895,0.00720823,1255.8,1255.7,16.75449573]
[1672879145679,0.00720823,1255.8,1255.7,15.34300325]
[1672879146101,0.00720823,1255.8,1255.7,16.75452549]
[1672879153879,0.00720823,1255.8,1255.7,13.74722549]
[1672879154191,0.00720823,1255.8,1255.7,16.75452549]
[1672879156618,0.00720823,1255.8,1255.7,19.72639671]
[1672879156821,0.00720823,1255.8,1255.7,17.33769346]
[1672879157032,0.00720823,1255.8,1255.7,19.72670803]
[1672879157666,0.00720823,1255.8,1255.7,17.33769346]
[1672879158500,0.00501372,1255.8,1255.7,14.36582224]
[1672879158822,16.9653,1256.3,1255.9,7.947]
[1672879159028,2.0,1256.2,1256.1,9.73843143]
[1672879159244,2.0,1256.2,1256.1,9.947]
[1672879159557,2.0,1256.2,1256.1,7.947]
[1672879159762,5.0073,1256.3,1256.1,9.947]
[1672879159973,2.0,1256.3,1256.2,2.0]
[1672879163552,2.0,1256.3,1256.1,9.947]
[1672879167022,2.0,1256.3,1256.1,12.9543]
[1672879167430,2.0,1256.3,1256.1,10.9543]
[1672879169338,2.0,1256.4,1256.1,10.9543]
[1672879169550,2.0,1256.4,1256.2,2.0]
[1672879169966,2.0,1256.4,1256.1,10.9543]
[1672879170176,2.0,1256.4,1256.2,2.0]
[1672879172188,2.0,1256.4,1256.2,5.0073]
[1672879172494,2.0,1256.4,1256.2,12.9543]
[1672879174385,13.958,1256.5,1256.2,12.9543]
[1672879174699,2.0,1256.4,1256.2,12.9543]
[1672879175531,2.0,1256.4,1256.2,10.9543]
[1672879175939,2.0,1256.4,1256.2,3.0073]
[1672879176991,5.0073,1256.4,1256.2,3.0073]
[1672879177203,5.0073,1256.4,1256.1,9.947]
[1672879179942,2.0,1256.4,1256.1,9.947]
[1672879180149,2.0,1256.4,1256.1,12.9543]
[1672879184143,2.0,1256.4,1256.1,10.9543]
[1672879184356,2.0,1256.4,1256.0,9.73843143]
[1672879184665,2.0,1256.2,1255.9,4.79873143]
[1672879185295,2.0,1256.2,1255.9,12.74573143]
[1672879185502,2.0,1256.2,1255.9,9.73843143]
[1672879185716,2.0,1256.2,1256.0,5.0073]
[1672879186131,5.0073,1256.4,1256.1,2.0]
[1672879188239,5.0073,1256.4,1256.0,6.79873143]
[1672879188444,5.0073,1256.4,1256.0,5.0073]
[1672879189388,2.0,1256.4,1256.0,2.0]
[1672879189598,5.0073,1256.4,1256.0,5.0073]
[1672879190448,5.0073,1256.4,1256.0,6.79873143]
[1672879191178,5.0073,1256.4,1256.0,5.0073]
[1672879191807,5.0073,1256.4,1256.0,6.79873143]
[1672879193594,5.0073,1256.4,1256.0,3.79143143]
[1672879193912,5.0073,1256.4,1256.0,6.79873143]
[1672879196652,5.0073,1256.4,1256.0,9.18730667]
[1672879196859,5.0073,1256.4,1256.0,6.79873143]
[1672879197175,5.0073,1256.4,1256.0,9.18730667]
[1672879197705,5.0073,1256.4,1256.1,1.79143143]
[1672879198014,5.0073,1256.4,1256.2,2.0]
[1672879198434,5.0073,1256.4,1256.1,1.79143143]
[1672879198963,2.0,1256.4,1256.2,4.79873143]
[1672879199275,2.0,1256.4,1256.3,2.0]
[1672879199696,2.0,1256.4,1256.2,5.79873143]
[1672879200323,2.0,1256.4,1256.2,6.99217095]
[1672879202005,2.0,1256.4,1256.2,3.98487095]
[1672879202430,2.0,1256.4,1256.2,6.99217095]
[1672879205912,2.0,1256.4,1256.2,3.98487095]
[1672879206219,2.0,1256.4,1256.2,6.99217095]
[1672879206961,2.0,1256.4,1256.2,5.99217095]
[1672879207584,2.0,1256.4,1256.2,7.99217095]
[1672879208537,2.0,1256.4,1256.2,5.99217095]
[1672879209479,2.0,1256.4,1256.2,1.19343952]
[1672879209905,2.0,1256.4,1256.2,2.98487095]
[1672879210431,5.0073,1256.5,1256.3,1.19343952]
[1672879210844,5.0073,1256.5,1256.3,3.19343952]
[1672879211059,2.0,1256.5,1256.3,3.19343952]
[1672879211270,2.0,1256.5,1256.3,1.19343952]
[1672879212107,2.0,1256.5,1256.2,4.98487095]
[1672879212318,2.0,1256.5,1256.3,1.19343952]
[1672879213267,2.0,1256.5,1256.2,4.98487095]
[1672879213795,2.0,1256.5,1256.3,1.19343952]
[1672879214104,2.0,1256.5,1256.2,4.98487095]
[1672879214531,2.0,1256.5,1256.3,1.19343952]
[1672879214742,2.0,1256.5,1256.2,4.98487095]
[1672879215153,2.0,1256.5,1256.2,7.99217095]
[1672879216627,2.0,1256.5,1256.2,4.98487095]
[1672879216839,5.0073,1256.5,1256.2,7.99217095]
[1672879218840,5.0073,1256.5,1256.2,5.99217095]
[1672879220105,2.0,1256.5,1256.2,2.98487095]
[1672879220414,5.0073,1256.5,1256.2,4.98487095]
[1672879220626,5.0073,1256.5,1256.2,7.99217095]
[1672879221141,5.0073,1256.5,1256.2,4.98487095]
[1672879221142,2.0,1256.5,1256.2,4.98487095]
[1672879221356,2.0,1256.5,1256.2,5.99217095]
[1672879226199,2.0,1256.5,1256.2,4.20073952]
[1672879226398,2.0,1256.5,1256.2,5.99217095]
[1672879226608,2.0,1256.5,1256.2,5.98512282]
[1672879226819,5.0073,1256.5,1256.2,2.97782282]
[1672879227033,5.0073,1256.5,1256.2,4.97782282]
[1672879227244,2.0,1256.5,1256.2,4.97782282]
[1672879227449,5.0073,1256.5,1256.2,4.97782282]
[1672879227663,2.0,1256.5,1256.2,4.97782282]
[1672879228085,5.0073,1256.5,1256.2,4.97782282]
[1672879228500,2.0,1256.5,1256.2,4.97782282]
[1672879228815,5.0073,1256.5,1256.2,5.98512282]
[1672879229976,2.0,1256.5,1256.2,2.97782282]
[1672879230290,5.0073,1256.5,1256.2,2.97782282]
[1672879230921,5.0073,1256.5,1256.2,1.18639139]
[1672879231447,5.0073,1256.5,1256.2,2.97782282]
[1672879233868,9.77360479,1256.5,1256.2,2.97782282]
[1672879234700,6.76630479,1256.5,1256.2,2.97782282]
[1672879234912,9.77360479,1256.5,1256.2,2.97782282]
[1672879238062,9.77360479,1256.5,1256.2,1.79143143]
[1672879239849,9.77360479,1256.5,1256.1,15.13430667]
[1672879240062,9.77360479,1256.5,1256.2,1.79143143]
[1672879241850,6.76630479,1256.5,1256.2,1.79143143]
[1672879242055,9.77360479,1256.5,1256.2,1.79143143]
[1672879242895,6.76630479,1256.5,1256.2,1.79143143]
[1672879243111,2.0,1256.3,1256.2,1.79143143]
[1672879253629,3.0073,1256.4,1256.2,1.79143143]
[1672879254990,6.76630479,1256.5,1256.2,1.79143143]
[1672879255206,9.77360479,1256.5,1256.2,1.79143143]
[1672879255944,6.76630479,1256.5,1256.2,1.79143143]
[1672879256152,9.77360479,1256.5,1256.2,1.79143143]
[1672879256784,6.76630479,1256.5,1256.2,1.79143143]
[1672879256993,3.0073,1256.4,1256.2,1.79143143]
[1672879257204,2.0,1256.3,1256.2,1.79143143]
[1672879259932,2.0,1256.3,1256.1,12.12700667]
[1672879263188,2.0,1256.3,1256.2,1.79143143]
[1672879264656,3.0073,1256.4,1256.2,3.79143143]
[1672879264868,2.0,1256.3,1256.2,3.79143143]
[1672879266024,3.0073,1256.4,1256.2,3.79143143]
[1672879266976,9.77360479,1256.5,1256.2,3.79143143]
[1672879270858,6.76630479,1256.5,1256.2,3.79143143]
[1672879271377,9.77360479,1256.5,1256.2,3.79143143]
[1672879274020,6.76630479,1256.5,1256.2,3.79143143]
[1672879274220,9.77360479,1256.5,1256.2,3.79143143]
[1672879274745,9.77360479,1256.5,1256.2,1.79143143]
[1672879276225,9.77360479,1256.5,1256.2,3.79143143]
[1672879277488,9.77360479,1256.5,1256.2,1.79143143]
[1672879278333,9.77360479,1256.5,1256.2,3.79143143]
[1672879278649,5.0073,1256.5,1256.3,1.79143143]
[1672879280643,2.0,1256.5,1256.3,1.79143143]
[1672879282113,2.0,1256.5,1256.2,9.18730667]
[1672879283587,9.77360479,1256.6,1256.2,9.18730667]
[1672879283788,9.77360479,1256.6,1256.3,1.79143143]
[1672879284844,7.77360479,1256.6,1256.3,9.73843143]
[1672879285058,5.0073,1256.6,1256.4,2.0]
[1672879286004,5.0073,1256.6,1256.3,12.12700667]
[1672879286318,5.0073,1256.6,1256.4,2.0]
[1672879286945,2.0,1256.6,1256.4,2.0]
[1672879290422,2.0,1256.6,1256.3,14.74573143]
[1672879290943,2.0,1256.6,1256.4,2.0]
[1672879292620,5.0073,1256.6,1256.3,11.73843143]
[1672879292830,5.0073,1256.6,1256.4,2.0]
[1672879293560,2.0,1256.6,1256.3,11.73843143]
[1672879293783,5.0073,1256.6,1256.3,11.73843143]
[1672879293990,5.0073,1256.6,1256.4,2.0]
[1672879296407,5.0073,1256.6,1256.3,11.73843143]
[1672879296614,2.0,1256.6,1256.3,14.74573143]
[1672879298098,2.0,1256.6,1256.3,11.73843143]
[1672879298405,5.0073,1256.6,1256.3,11.73843143]
[1672879298610,2.0,1256.6,1256.3,11.73843143]
[1672879299248,5.0073,1256.6,1256.4,2.0]
[1672879301042,2.0,1256.6,1256.4,2.0]
[1672879301777,2.0,1256.6,1256.3,11.73843143]
[1672879301989,2.0,1256.6,1256.3,14.74573143]
[1672879303561,2.0,1256.6,1256.3,11.73843143]
[1672879303880,2.0,1256.6,1256.3,14.74573143]
[1672879304620,2.0,1256.6,1256.3,11.73843143]
[1672879304818,2.0,1256.6,1256.3,14.74573143]
[1672879305135,2.0,1256.6,1256.4,2.0]
[1672879310494,13.958,1256.7,1256.4,11.73448756]
[1672879310715,4.76630479,1256.8,1256.4,11.73448756]
[1672879310932,6.76630479,1256.8,1256.4,11.73448756]
[1672879311661,2.0,1256.7,1256.4,11.73448756]
[1672879312718,2.0,1256.7,1256.4,14.74178756]
[1672879313029,2.0,1256.7,1256.4,1.99605613]
[1672879313349,2.0,1256.5,1256.4,1.99605613]
[1672879313560,2.0,1256.5,1256.3,11.73843143]
[1672879314284,2.0,1256.5,1256.4,2.0]
[1672879314493,3.0073,1256.6,1256.4,2.0]
[1672879315867,3.0073,1256.6,1256.4,3.79143143]
[1672879316079,3.0073,1256.6,1256.4,6.79873143]
[1672879317973,3.0073,1256.6,1256.4,2.0]
[1672879318179,2.0,1256.5,1256.3,9.73843143]
[1672879318381,2.0,1256.5,1256.3,1.79143143]
[1672879318707,3.0073,1256.4,1256.1,1.79143143]
[1672879318911,2.0,1256.3,1256.1,1.79143143]
[1672879320071,3.0073,1256.2,1256.1,1.79143143]
[1672879320273,3.0073,1256.2,1256.0,1.79143143]
[1672879320808,2.0,1256.1,1255.9,4.18000667]
[1672879321439,2.0,1256.1,1255.9,1.79143143]
[1672879323015,5.0073,1256.1,1255.9,1.79143143]
[1672879323543,5.0073,1256.1,1255.8,4.18000667]
[1672879324492,5.0073,1256.1,1255.8,1.79143143]
[1672879325322,5.0073,1256.1,1255.7,4.79873143]
[1672879326683,2.0,1255.8,1255.6,7.18730667]
[1672879326902,2.0,1255.8,1255.7,2.0]
[1672879327531,2.0,1255.8,1255.6,6.79873143]
[1672879328060,2.0,1255.8,1255.6,4.79873143]
[1672879328688,2.0,1255.8,1255.6,1.79143143]
[1672879329108,2.0,1255.8,1255.6,3.79143143]
[1672879333305,2.0,1255.8,1255.6,1.79143143]
[1672879334154,2.0,1255.8,1255.5,17.13430667]
[1672879334990,2.0,1255.8,1255.5,14.74573143]
[1672879335200,2.0,1255.8,1255.5,17.13430667]
[1672879335838,2.0,1255.8,1255.5,14.74573143]
[1672879336049,2.0,1255.8,1255.5,12.9543]
[1672879336573,2.0,1255.8,1255.5,14.74573143]
[1672879337412,2.0,1255.8,1255.5,12.9543]
[1672879338569,2.0,1255.8,1255.5,3.0073]
[1672879338776,2.0,1255.8,1255.5,5.0073]
[1672879338987,2.0,1255.8,1255.5,3.0073]
[1672879340670,2.0,1255.8,1255.5,5.0073]
[1672879340874,2.0,1255.8,1255.5,3.0073]
[1672879341085,2.0,1255.8,1255.4,12.12700667]
[1672879341299,2.0,1255.8,1255.5,5.0073]
[1672879341617,2.0,1255.8,1255.6,2.0]
[1672879342346,2.0,1255.8,1255.5,5.0073]
[1672879344245,2.0,1255.8,1255.5,3.0073]
[1672879345929,2.0,1255.8,1255.4,9.73843143]
[1672879346769,2.0,1255.8,1255.4,10.92543772]
[1672879346979,5.0073,1255.8,1255.4,13.93273772]
[1672879347184,5.0073,1255.8,1255.4,15.93273772]